Cogmind - Beta 13 @@@ ROGUE MODE // 2024.06.06 @ 09:52:45 Player: Dosh Result: Destroyed by 8R-AWN with 8R-AWN's Boregun Performance ------------- Evolutions (1) 500 Regions Visited (5) 1000 Robots Destroyed (81) 405 Value Destroyed (1884) 1884 Prototype IDs (11) 220 Alien Tech Used (0) 0 Bonus (0) 0 TOTAL SCORE: 4009 Bonus ------- None Cogmind --------- Core Integrity 0/400 Matter 45/300 Energy 100/100 System Corruption 13% Temperature Cool (0) Movement Core (700) Ox13 Location -9/Exiles Parts ------- > --- POWER (1) -------- (None) > --- PROPULSION (2) --- (None) > --- UTILITY (4) ------ High-capacity Storage Unit > --- WEAPON (2) ------- (None) > --- INVENTORY (20) --- Light Ion Engine Cooling System Experimental Sensor Array Hacking Suite Small Laser Light EM Pulse Cannon Light Assault Rifle Light Cannon Datajack Peak State ------------ > --- POWER ------------ Cooled Ion Engine > --- PROPULSION ------- Light Treads Light Treads > --- UTILITY ---------- High-capacity Storage Unit Advanced Targeting Computer Hardened Medium Armor Plating Hardened Medium Armor Plating > --- WEAPON ----------- Light Assault Rifle Heavy Assault Rifle > --- INVENTORY -------- Ion Engine Light Ion Engine Light Treads Light Treads Light Treads Light Treads Wheel Experimental Sensor Array Hardened Medium Armor Plating Hardened Medium Armor Plating Hacking Suite Small Laser Light EM Pulse Cannon Assault Rifle Light Assault Rifle Light Assault Rifle Light Assault Rifle Light Cannon Rocket Launcher Datajack [Rating: 21] Favorites ----------- Power Cooled Ion Engine Engine Cooled Ion Engine Propulsion Light Treads Treads Light Treads Wheel Wheel Utility Hardened Medium Armor Plating Device Structural Scanner Storage High-capacity Storage Unit Processor Advanced Targeting Computer Protection Hardened Medium Armor Plating Weapon Light Cannon Energy Cannon Light EM Pulse Cannon Ballistic Gun Light Assault Rifle Ballistic Cannon Light Cannon Launcher Rocket Launcher Special Melee Weapon Datajack Build | -11 -10 -10 -9 -9 -9 ------- Run | Yrd Mat Min Mat Min Exi Slots Evolved 2 | . . . 2 . . Power . | . . . . . . Propulsion . | . . . . . . Utility 2 | . . . 2 . . Weapon . | . . . . . . Parts Attached 59 | 6 8 5 26 1 13 Power 6 | 1 1 . 3 . 1 Engine 6 | 1 1 . 3 . 1 Core . | . . . . . . Reactor . | . . . . . . Propulsion 14 | 2 2 1 5 1 3 Treads 13 | 2 2 . 5 1 3 Leg . | . . . . . . Wheel 1 | . . 1 . . . Hover . | . . . . . . Flight . | . . . . . . Utility 17 | 1 3 2 8 . 3 Device 2 | . . 1 1 . . Storage 3 | 1 1 1 . . . Processor 2 | . . . 1 . 1 Hackware . | . . . . . . Protection 10 | . 2 . 6 . 2 Artifact . | . . . . . . Weapon 22 | 2 2 2 10 . 6 Energy Gun . | . . . . . . Energy Cannon 2 | . . . 1 . 1 Ballistic Gun 13 | 2 2 . 5 . 4 Ballistic Cannon 3 | . . 2 1 . . Launcher 3 | . . . 2 . 1 Special Weapon . | . . . . . . Impact Weapon . | . . . . . . Slashing Weapon . | . . . . . . Piercing Weapon . | . . . . . . Special Melee Weapon 1 | . . . 1 . . Unidentified Prototypes 2 | . . 1 1 . . Parts Lost 27 | . 2 1 6 1 17 Power 4 | . 1 . 1 . 2 Propulsion 6 | . . 1 . 1 4 Utility 9 | . 1 . 3 . 5 Weapon 8 | . . . 2 . 6 Highest Loss Streak 17 | . 1 1 3 1 17 To Critical Strikes 7 | . . . . . 7 Average Slot Usage (%) 94 | . 96 81 94 100 78 Engine 11 | . 13 14 10 11 9 Treads 22 | . 27 22 21 22 17 Device 1 | . . . 3 . . Storage 12 | . 14 14 11 11 11 Processor 5 | . . . 4 11 5 Protection 16 | . 11 . 18 22 13 Ballistic Gun 15 | . 28 . 10 22 18 Ballistic Cannon 7 | . . 28 11 . . Naked Turns . | . . . . . . Heaviest Build 71 | 13 31 71 71 68 68 Greatest Support 40 | 40 40 40 40 40 40 Greatest Overweight (x) 13 | . . 7 7 1 13 Average Overweight (x) 1 | . . 1 1 1 1 Largest Inventory Capacity 20 | 8 15 20 20 20 20 Average Capacity 18 | 6 12 15 20 20 20 Most Carried 20 | 2 9 10 20 20 19 Average Carried 14 | . 3 9 17 19 15 Final Capacity 20 | 8 15 20 20 20 20 Final Carried 20 | 2 9 9 20 19 9 Class Distribution -------------------- 80% | Mutant 19% | Scavenger-Mutant Dominant Class ---------------- Mutant | -10/Materials Mutant | -10/Mines Mutant | -9/Materials Mutant | -9/Mines Mutant | -9/Exiles Resources | -11 -10 -10 -9 -9 -9 ----------- Run | Yrd Mat Min Mat Min Exi Matter Collected 1842 | 246 299 104 1110 83 . Remotely . | . . . . . . Salvage Created 2311 | . 601 63 1412 214 21 Parts 184 | . 49 4 118 13 . Haulers Intercepted 6 | . 1 . 5 . . Recyclers Shooed 2 | . 2 . . . . Parts Field Recycled . | . . . . . . Retrieved Matter . | . . . . . . Parts Self-Destructed . | . . . . . . Prevented . | . . . . . . Kills | -11 -10 -10 -9 -9 -9 ------- Run | Yrd Mat Min Mat Min Exi Combat Hostiles Destroyed 61 | . 18 2 31 5 5 Guns 30 | . 18 . 6 5 1 Cannons 24 | . . 2 22 . . AOE 7 | . . . 3 . 4 Classes Destroyed 14 | . 6 . 7 . 1 Worker 5 | . 1 1 3 . . Builder 1 | . . . 1 . . Tunneler 2 | . . . 2 . . Hauler 6 | . 1 . 5 . . Recycler 2 | . . . 2 . . Mechanic 1 | . . . 1 . . Operator 2 | . 1 . 1 . . Watcher 6 | . 2 . 4 . . Swarmer 16 | . 9 . 7 . . Grunt 29 | . 9 2 13 5 . Brawler 1 | . . . 1 . . Duelist 2 | . . . 2 . . Sentry 8 | . . . 8 . . Assembled 5 | . . . . . 5 Best Kill Streak 7 | . 4 2 7 3 5 Combat Bots Only 5 | . 3 2 5 3 5 Max Kills in Single Turn 4 | . 2 1 4 1 2 Gunslinging 1 | . 1 . . . . Exploded 3 | . . . 3 . 2 Melee . | . . . . . . Uniques/NPCs Destroyed . | . . . . . . Combat | -11 -10 -10 -9 -9 -9 -------- Run | Yrd Mat Min Mat Min Exi Hostile Shots Fired 385 | . 75 15 138 31 126 Missed 91 | . 18 3 35 5 30 Damage Taken 4264 | . 642 152 1344 333 1793 Core 524 | . 64 55 109 60 236 Absorbed by Shields . | . . . . . . Regen/Repaired (Parts) 154 | . 143 . 11 . . Core Remaining (%) 76 | 100 . 52 . . . Volleys Fired 243 | . 61 9 112 17 44 Largest 2 | . 2 2 2 2 2 Hottest 76 | . 40 70 70 43 76 Shots Fired 475 | . 122 18 221 35 79 Gun 282 | . 122 . 53 35 72 Cannon 185 | . . 18 166 . 1 Launcher 8 | . . . 2 . 6 Special . | . . . . . . Kinetic 466 | . 122 18 219 35 72 Thermal . | . . . . . . Explosive 8 | . . . 2 . 6 Electromagnetic 1 | . . . . . 1 Robot Hit Streak 20 | . 10 6 14 20 9 Robot Miss Streak 5 | . 5 3 4 2 2 Penetration Max . | . . . . . . Secondary Targets 6 | . 5 . . 1 . Max Gunslinging Chain 1 | . 1 . . 1 . Shots Hit Robots 319 | . 76 11 140 32 60 Core Hits 137 | . 42 4 65 11 15 Critical Kills 1 | . 1 . . . . Critical Parts Destroyed 4 | . 3 . 1 . . Critical Strikes 8 | . 4 . 4 . . Destroy 5 | . 4 . 1 . . Blast 3 | . . . 3 . . Melee Attacks 2 | . . . 2 . . Impact . | . . . . . . Slashing . | . . . . . . Piercing . | . . . . . . Sneak Attacks 2 | . . . 2 . . Combat Hostiles . | . . . . . . Follow-up Attacks . | . . . . . . Damage Inflicted 5079 | . 883 189 2781 396 830 Guns 2269 | . 844 . 543 365 517 Cannons 2114 | . . 185 1928 . 1 Explosions 527 | . . . 215 . 312 Melee . | . . . . . . Ramming 169 | . 39 4 95 31 . Kinetic 4382 | . 844 185 2471 365 517 Thermal . | . . . . . . Explosive 527 | . . . 215 . 312 Electromagnetic 1 | . . . . . 1 Impact . | . . . . . . Slashing . | . . . . . . Piercing . | . . . . . . Highest Corruption 13 | . . . 2 2 13 Average Corruption 1 | . . . 1 2 7 Corruption Purged . | . . . . . . Corruption Blocked . | . . . . . . Effects 60 | . . . 29 26 5 Message Errors 8 | . . . 3 5 . Matter Fused 18 | . . . 10 7 1 Heat Flow Errors 4 | . . . 1 3 . Energy Discharges 9 | . . . 5 3 1 Parts Rejected 1 | . . . . . 1 Data Loss (minor) 8 | . . . 6 2 . Data Loss (major) 5 | . . . 1 3 1 Misfires 2 | . . . . 1 1 Alerts 3 | . . . 1 2 . Weapon Failures 2 | . . . 2 . . Overload Shots . | . . . . . . Overflow Damage 60 | . . . 37 . 23 Projectiles 16 | . . . 16 . . Explosions 44 | . . . 21 . 23 Melee . | . . . . . . Knockbacks 21 | . . 2 18 1 . Impact 2 | . . . 1 1 . Kinetic 16 | . . 2 14 . . Secondary 3 | . . . 3 . . Self-Inflicted Damage 251 | . . . 105 . 146 Shots 4 | . . . 1 . 3 Rammed 25 | . 9 2 11 3 . Targets Rammed 27 | . 10 2 12 3 . Kicked . | . . . . . . Crushed 2 | . 1 . 1 . . Highest Temperature 260 | . 30 159 229 260 131 Average Temperature 44 | . 9 72 35 86 57 Received Heat Transfer 956 | . 186 87 363 180 140 Siege Activations . | . . . . . . Robots Corrupted . | . . . . . . Combat Hostiles . | . . . . . . Parts Fried . | . . . . . . Impact Corruptions . | . . . . . . Robots Melted . | . . . . . . Combat Hostiles . | . . . . . . Parts Melted . | . . . . . . Heat Transferred . | . . . . . . Parts Sabotaged . | . . . . . . Parts Stolen . | . . . . . . Parts Stripped . | . . . . . . Power Chain Reactions . | . . . . . . Alert | -11 -10 -10 -9 -9 -9 ------- Run | Yrd Mat Min Mat Min Exi Peak Influence 353 | . 342 169 353 218 . Initial 114 | . . 114 1 108 . Average 146 | . 208 105 172 55 . Maximum Alert Level 1 | . 1 . 1 1 . Low Security (%) 60 | 100 31 100 54 80 . Level 1 39 | . 68 . 45 19 . Level 2 . | . . . . . . Level 3 . | . . . . . . Level 4 . | . . . . . . Level 5 . | . . . . . . High Security . | . . . . . . Max Security . | . . . . . . Squads Dispatched 9 | . 5 . 4 . . Investigation 6 | . 3 . 3 . . Extermination . | . . . . . . Reinforcement 3 | . 2 . 1 . . Assault . | . . . . . . Garrison . | . . . . . . Intercept . | . . . . . . Searches Triggered . | . . . . . . Construction Impeded . | . . . . . . Haulers Reinforced . | . . . . . . Active Scanning Responses . | . . . . . . Cargo Convoy Interrupts . | . . . . . . Stealth | -11 -10 -10 -9 -9 -9 --------- Run | Yrd Mat Min Mat Min Exi Distress Signals 5 | . 1 . 4 . . Communications Jammed . | . . . . . . Distress Signals . | . . . . . . Times Spotted 89 | . 29 2 45 5 8 Peak Tracking Total 9 | . 4 2 5 5 9 Tactical Retreats 7 | . 5 . 2 . . Traps | -11 -10 -10 -9 -9 -9 ------- Run | Yrd Mat Min Mat Min Exi Traps Triggered 3 | . 3 . . . . Indirectly . | . . . . . . Trap Hack Attempts 73 | . . . 73 . . Triggered . | . . . . . . Disarmed . | . . . . . . Reprogrammed 4 | . . . 4 . . Reused 2 | . . . 2 . . Traps Extracted . | . . . . . . Installed . | . . . . . . Triggered 2 | . . . 2 . . Machines | -11 -10 -10 -9 -9 -9 ---------- Run | Yrd Mat Min Mat Min Exi Machines Disabled 4 | . . . 2 . 2 Max in Single Turn 2 | . . . 2 . 1 Machines Repaired . | . . . . . . Machines Dismantled . | . . . . . . Machines Sabotaged . | . . . . . . Overloaded Fab Kills . | . . . . . . Hacking | -11 -10 -10 -9 -9 -9 --------- Run | Yrd Mat Min Mat Min Exi Machines Accessed 20 | . 6 . 14 . . Terminals 14 | . 4 . 10 . . Fabricators . | . . . . . . Repair Stations 3 | . 1 . 2 . . Recycling Units 1 | . 1 . . . . Scanalyzers 2 | . . . 2 . . Garrison Access . | . . . . . . Total Hacks 80 | . 20 . 60 . . Successful 46 | . 11 . 35 . . Failed 32 | . 8 . 24 . . Catastrophic 4 | . 2 . 2 . . Database Lockouts 2 | . 1 . 1 . . Manual 33 | . 10 . 23 . . Terminals 52 | . 14 . 38 . . Fabricators . | . . . . . . Repair Stations 12 | . 5 . 7 . . Recycling Units 1 | . 1 . . . . Scanalyzers 15 | . . . 15 . . Garrison Access . | . . . . . . Terminal Hacks 21 | . 5 . 16 . . Part Schematic 1 | . . . 1 . . Robot Schematic 1 | . . . 1 . . Robot Analysis 4 | . 1 . 3 . . Prototype ID Bank 7 | . 3 . 4 . . Branch Access Points 1 | . . . 1 . . Alert Level 2 | . . . 2 . . Unreport Threat 1 | . . . 1 . . Hauler Manifests 3 | . 1 . 2 . . Zone Layout 1 | . . . 1 . . Fabricator Hacks . | . . . . . . Repair Station Hacks 7 | . 4 . 3 . . Scan Component 4 | . 2 . 2 . . Repair 3 | . 2 . 1 . . Recycling Unit Hacks . | . . . . . . Scanalyzer 14 | . . . 14 . . Insert Component 7 | . . . 7 . . Analyze 7 | . . . 7 . . Garrison Access Hacks . | . . . . . . Unauthorized Hacks 4 | . 2 . 2 . . Terminals 3 | . 1 . 2 . . Botnet 3 | . 1 . 2 . . Fabricators . | . . . . . . Repair Stations . | . . . . . . Recycling Units 1 | . 1 . . . . Tunnel 1 | . 1 . . . . Scanalyzers . | . . . . . . Garrison Access . | . . . . . . Data Cores Recovered . | . . . . . . Used . | . . . . . . Hacking Detections 16 | . 3 . 13 . . Full Trace Events 7 | . 1 . 6 . . Feedback Events 2 | . . . 2 . . Corruption 2 | . . . 2 . . Feedback Blocked . | . . . . . . Robot Schematics Acquired 1 | . . . 1 . . Robots Built . | . . . . . . Authchips . | . . . . . . Time . | . . . . . . Total Robot Build Rating . | . . . . . . Part Schematics Acquired 7 | . . . 7 . . Parts Built . | . . . . . . Authchips . | . . . . . . Time . | . . . . . . Total Part Build Rating . | . . . . . . Parts Repaired 3 | . 2 . 1 . . Time 188 | . 52 . 136 . . Parts Recycled . | . . . . . . Recycled Matter . | . . . . . . Retrieved Matter . | . . . . . . Retrieved Components . | . . . . . . Parts Scanalyzed 6 | . . . 6 . . Part Schematics Acquired 6 | . . . 6 . . Parts Damaged 1 | . . . 1 . . Bothacking | -11 -10 -10 -9 -9 -9 ------------ Run | Yrd Mat Min Mat Min Exi Used RIF Installer . | . . . . . . Robots Hacked 2 | . . . 2 . . Non-combat 2 | . . . 2 . . Combat . | . . . . . . Robot Hacks Applied 2 | . . . 2 . . no_distress 2 | . . . 2 . . Relay Couplers Released . | . . . . . . Fabnet Peak Effective % . | . . . . . . Robots Rewired . | . . . . . . Allies Hacked . | . . . . . . Hacks Repelled . | . . . . . . Allies | -11 -10 -10 -9 -9 -9 -------- Run | Yrd Mat Min Mat Min Exi Total Allies 4 | . . . . 4 . Largest Group 3 | . . . . 3 3 Highest-Rated Group 40 | . . . . 40 40 Highest-Rated Ally 31 | . . . . 31 16 Total Orders . | . . . . . . Ally Attacks 14 | . . . . . 14 Total Damage 10 | . . . . . 10 Kills . | . . . . . . Allies Corrupted . | . . . . . . Allies Melted . | . . . . . . Intel | -11 -10 -10 -9 -9 -9 ------- Run | Yrd Mat Min Mat Min Exi Robot Analysis Total 4 | . 1 . 3 . . Derelict Logs Recovered 1 | . . . . 1 . Drone Launches . | . . . . . . Drone Recoveries . | . . . . . . Exploration | -11 -10 -10 -9 -9 -9 ------------- Run | Yrd Mat Min Mat Min Exi Turns Passed 7196 | 83 1116 490 3767 1523 217 Spaces Moved 2694 | 49 521 152 1322 612 38 Core 6 | 5 . . . . 1 Treads 2552 | 44 521 122 1216 612 37 Legs . | . . . . . . Wheels 136 | . . 30 106 . . Hover . | . . . . . . Flight . | . . . . . . Fastest Speed 50 | 50 160 125 185 240 240 Average Speed 217 | 148 160 185 235 240 252 Slowest Speed 700 | 160 160 240 400 240 700 Overloaded Moves . | . . . . . . Propulsion Burnouts . | . . . . . . Robots Hopped . | . . . . . . Cave-ins Triggered . | . . . . . . Exploration Rate (%) 53 | 4 82 29 97 98 13 Regions Visited 5 Branch Regions 3 Pre-discovered Areas 2 | . 1 . . 1 . Known Exits Taken 1 | . . . 1 . . Unknown Exits Taken 4 | 1 1 1 . 1 . Scrap Searched 1 | . . . . 1 . Spaces Dug . | . . . . . . Terrain Destroyed 70 | . . . 46 . 24 Melee . | . . . . . . Projectile . | . . . . . . AOE 70 | . . . 46 . 24 Terrain Rammed . | . . . . . . Walls Destroyed . | . . . . . . Machines Disabled . | . . . . . . Actions | -11 -10 -10 -9 -9 -9 --------- Run | Yrd Mat Min Mat Min Exi Total 3539 | 56 685 338 1733 632 95 Wait 411 | . 79 170 162 . . Move 2689 | 48 520 151 1321 611 38 Hop . | . . . . . . Pick Up 21 | 2 6 1 12 . . Fast Attach 21 | 6 4 1 10 . . Attach 15 | . 1 1 2 1 10 Detach 4 | . . . 4 . . Swap 23 | . 3 3 14 . 3 Drop 10 | . 1 . 9 . . Fire 243 | . 61 9 112 17 44 Melee 2 | . . . 2 . . Ram . | . . . . . . Kick . | . . . . . . Crush 27 | . 10 2 12 3 . Escape Stasis . | . . . . . . Rewire . | . . . . . . Trap 73 | . . . 73 . . Miscellaneous . | . . . . . . Route ------- -11/Scrapyard -10/Materials (discovered 4 exits: *Mat x2 / [*Min x2]) -10/Mines -9/Materials (discovered 4 exits: [*Mat x3] / *Min) -9/Mines (discovered 3 exits: [*Mat x2] / [*Exi]) -9/Exiles (discovered 1 exit: [*Min]) History --------- Turn | Location | Event 5 | -11/Scrapyard | Discovered new exit (range 14) 84 | -11/Scrapyard | Entered Materials 148 | -10/Materials | Discovered new exit (range 9) 309 | -10/Materials | Build established: Mutant 313 | -10/Materials | Central database locked down 361 | -10/Materials | Discovered new exit (range 9) 537 | -10/Materials | Repaired Lgt. Armor Plating 564 | -10/Materials | Repaired Lgt. Treads 887 | -10/Materials | Discovered new exit (range 16) 1180 | -10/Materials | Discovered new exit (range 11) 1200 | -10/Materials | Entered Mines 1201 | -10/Mines | Assembled infested the area 1406 | -10/Mines | Discovered new exit (range 14) 1415 | -10/Mines | Found a damaged Exp. Sensor Array with a note attached 1418 | -10/Mines | Found Prototype Device 1684 | -10/Mines | Identified Exp. Sensor Array 1690 | -10/Mines | Entered Materials 1690 | -9/Materials | Evolved 2 slots: Utility x2 2350 | -9/Materials | Discovered new exit (range 8) 2380 | -9/Materials | Build established: Scavenger-Mutant 2621 | -9/Materials | Discovered new exit (range 12) 3149 | -9/Materials | Discovered new exit (range 14) 3713 | -9/Materials | Build established: Mutant 3733 | -9/Materials | Lost 3 parts (2u1w) 4241 | -9/Materials | Central database locked down 4318 | -9/Materials | Identified exit to Mines 4404 | -9/Materials | Discovered new exit (range 16) 5165 | -9/Materials | Repaired Broken Exp. Sensor Array 5457 | -9/Materials | Entered Mines 5564 | -9/Mines | Discovered new exit (range 4) 5636 | -9/Mines | Learned location of Recycling (-7) 5675 | -9/Mines | Received a Mining Laser from a helpful Derelict 5919 | -9/Mines | Discovered new exit (range 5) 6072 | -9/Mines | Deemed a non-threat by the Exiles lab entrance 6339 | -9/Mines | Assisted by bots powering up and referring to "LRC-V3" 6497 | -9/Mines | Found a hidden stash of uninstalled traps 6970 | -9/Mines | Discovered new exit (range 5) 6980 | -9/Mines | Entered Exiles 6980 | -9/Exiles | Accompanied by 3 allies 7012 | -9/Exiles | Discovered new exit (range 15) 7045 | -9/Exiles | Met 8R-AWN 7068 | -9/Exiles | Attacked by the Exiles 7082 | -9/Exiles | Core integrity fell below 50% 7093 | -9/Exiles | System corruption reached 10% 7119 | -9/Exiles | Lost 3 allies 7178 | -9/Exiles | Core integrity fell below 20% 7197 | -9/Exiles | Destroyed by 8R-AWN with 8R-AWN's Boregun Last Messages --------------- 07168_ Penetrated by HV Slug. 07168_ Critical hit (Destroy). 07168_ Lgt. Treads destroyed. 07169_ System corrupted: Substantial component data lost. 07173_ Penetrated by HV Slug. 07180_ Destroyed Prototype Protection. 07180_ Penetrated by HV Slug. 07180_ Critical hit (Destroy). 07180_ Hvy. Assault Rifle destroyed. 07180_ Penetrated by HV Slug. 07184_ Ion Engine destroyed. 07189_ Penetrated by HV Slug. 07189_ HV Slug penetrates Earth. 07189_ HV Slug penetrates Wall. 07193_ Penetrated by HV Slug. 07193_ Lgt. Assault Rifle destroyed. 07193_ Penetrated by HV Slug. 07197_ HV Slug penetrates Wall. 07197_ HV Slug penetrates Earth. 07197_ Penetrated by HV Slug. Map ----- +----------------------------------------------------+ | ?????????????????????????????????????????????????? | | ?????????????????????????????????????????????????? | | ?????????????????????????????????????????????????? | | ?????????????????????????????????????????????????? | | ?????????????????????????????????????????????????? | | ?????????????????????????????????????????????????? | | ?????????????????????????????????????????????????? | | ?????????????????????????????????????????????????? | | ?????????????????????????????????????????????????? | | ?????????????????????????????????????????????????? | | ?????????????????????????????????????????????????? | | ?????????????????????????????????????????????????? | | ?????????????????????????????????????????????????? | | ????????????????????????????????????????????????? | | ????????????????????????????????????????????????? | | ????????????????????????????????????????????????? | | ????????????????????????????????????????????????# | | ??????????????????????????????????????????????## | | ??????????????????????????????????????????????# | | ??????????????????????????#####???????????????# | | ?????????????????????????## #??????????????## | | ????????????????????######" #?????????????## | | ???????????????????## # " ##????????????# | | ???????????????????# ###????????### | | ???????????????????# # g= ########## | | ????????? ## =%@=%! #""""## # | | ????????? # ! % * # | | ????????? ## * | | ????????? ## | | ?????????? ##"""""#### | | ?????????? #########??#### * | | ??????????? % % ;## ?????????????##### | | ??????????? ; #??#?????????????????### | | ??????????? ## ???????????????????????### | | ???????????? % "?####?????????????????????????## | | ???????????? "????????????????????????????????# | | ????????????? "?????????????????????????????????# | | ?????????????"???????????????????????????????????? | | ?????????????????????????????????????????????????? | | ?????????????????????????????????????????????????? | | ?????????????????????????????????????????????????? | | ?????????????????????????????????????????????????? | | ?????????????????????????????????????????????????? | | ?????????????????????????????????????????????????? | | ?????????????????????????????????????????????????? | | ?????????????????????????????????????????????????? | | ?????????????????????????????????????????????????? | | ?????????????????????????????????????????????????? | | ?????????????????????????????????????????????????? | | ?????????????????????????????????????????????????? | +----------------------------------------------------+ Best States ------------- Heat Dissipation 28 Energy Generation 14 Energy Capacity 280 Matter Stores 300 Matter Capacity 300 Sight Range 16 Terrain Scan Density 10 Armor Coverage 450 Evasion (%) 40 Targeting Accuracy 8 Recoil Reduction 2 Item Schematics ----------------- Huge Storage Unit | -9/Materials | Hacked Exp. Sensor Array | -9/Materials | Scanalyzed Rocket Launcher | -9/Materials | Scanalyzed Adv. Targeting Computer | -9/Materials | Scanalyzed Hrd. Medium Armor Plating | -9/Materials | Scanalyzed Hacking Suite | -9/Materials | Scanalyzed Cooling System | -9/Materials | Scanalyzed Robot Schematics ------------------ M-13 Machinist | -9/Materials | Hacked Fabricated ------------ Nothing Alien Tech Used ----------------- None Achievements -------------- None Challenges ------------ None Game ------ Seed PulseMyomerMonowheel Manual? 0 Play Time 00:23:34 Cumulative 400.7 hours Start 2024.06.06 @ 09:31:17 End 2024.06.06 @ 09:52:45 Sessions 1 Manual Loads 0 Difficulty Rogue Special Mode None Game No. 248 Rogue 248 Adventurer 0 Explorer 0 Win Type - Total 24 Types 16/2/3/1/1/0/0/1/0 Lore% 86 Gallery% 87 Achievement% 81 Wizard Run 0 Options --------- Layout 0 ASCII 0 Keyboard 1 Movement Numpad Keybinds 0 Fullscreen 2 Font 18/SmallcapsGlow Map View 76x50 Zoom Use 0% Tactical HUD 1 Map Filters NONE Filters NONE Steam 1 RUN: fef622ce-7601-4135-930a-3bca09f99b72